bitfinex/quotes_SOLUSD_20240624
["timestamp","ask_amount","ask_price","bid_price","bid_amount"]
[1719203888310,15.1665,126.79,126.73,0.17]
[1719203888510,15.1665,126.79,126.74,7.8901]
[1719203889022,15.1665,126.79,126.73,0.17]
[1719203889321,15.1665,126.79,126.75,7.8894]
[1719203889495,15.1665,126.82,126.77,7.8881]
[1719203890200,15.1665,126.82,126.76,7.8886]
[1719203891009,15.1665,126.82,126.77,7.8877]
[1719203891502,15.1665,126.82,126.75,0.34]
[1719203891700,15.1665,126.82,126.77,7.8881]
[1719203892401,15.1665,126.82,126.76,7.8886]
[1719203893309,15.1665,126.82,126.77,7.8879]
[1719203895428,15.1665,126.82,126.76,7.8886]
[1719203896100,0.17,126.81,126.73,7.8906]
[1719203896305,0.17,126.81,126.72,7.8913]
[1719203896306,1.1101,126.8,126.72,7.8913]
[1719203896505,15.6793,126.79,126.71,7.8917]
[1719203896721,15.6793,126.79,126.7,7.8923]
[1719203896924,0.17,126.78,126.7,7.8923]
[1719203897129,0.17,126.78,126.72,7.8913]
[1719203897338,15.6793,126.79,126.7,19.7301]
[1719203897515,15.6793,126.79,126.73,7.8905]
[1719203898041,15.6793,126.79,126.68,139.4682]
[1719203898042,152.88636073,126.7,126.68,139.4682]
[1719203898335,152.88636073,126.7,126.69,0.34]
[1719203898713,152.88636073,126.7,126.69,20.34]
[1719203898941,152.88636073,126.7,126.69,47.9664]
[1719203901026,152.88636073,126.7,126.69,266.8464]
[1719203902336,152.67479631,126.7,126.69,266.8464]
[1719203903017,152.67479631,126.7,126.69,66.8464]
[1719203903345,152.67479631,126.7,126.69,47.9664]
[1719203903647,152.67479631,126.7,126.69,47.7964]
[1719203903947,152.67479631,126.7,126.64,6.077]
[1719203904153,152.67479631,126.7,126.68,7.8938]
[1719203904654,152.67479631,126.7,126.69,7.8932]
[1719203905556,152.67479631,126.7,126.69,8.2332]
[1719203905929,152.67479631,126.7,126.69,28.2332]
[1719203907747,144.25158725,126.7,126.69,197.2431]
[1719203907980,142.68058725,126.7,126.69,197.2431]
[1719203908339,95.01398725,126.7,126.69,199.06901602]
[1719203908546,93.44298725,126.7,126.69,199.06901602]
[1719203909434,91.87198725,126.7,126.69,199.06901602]
[1719203913850,91.6949197,126.7,126.69,199.06901602]
[1719203915663,89.7239197,126.7,126.69,199.06901602]
[1719203916039,89.5439197,126.7,126.69,199.06901602]
[1719203916242,87.9729197,126.7,126.69,199.06901602]
[1719203916843,85.9729197,126.7,126.69,199.06901602]
[1719203917138,81.9729197,126.7,126.69,199.06901602]
[1719203917362,64.9729197,126.7,126.69,199.06901602]
[1719203917572,57.6129197,126.7,126.69,199.06901602]
[1719203917861,55.24164235,126.7,126.69,199.06901602]
[1719203918171,50.49908765,126.7,126.69,199.06901602]
[1719203918357,48.1278103,126.7,126.69,199.06901602]
[1719203918540,43.3852556,126.7,126.69,199.06901602]
[1719203918741,41.01397825,126.7,126.69,199.06901602]
[1719203919047,36.27142355,126.7,126.69,199.06901602]
[1719203919255,33.75242355,126.7,126.69,199.06901602]
[1719203919438,15.4172,126.8,126.78,7.8874]
[1719203919642,15.4172,126.8,126.77,7.888]
[1719203920679,15.4172,126.8,126.77,7.8877]
[1719203920972,15.4172,126.8,126.76,7.8887]
[1719203921135,15.4172,126.8,126.77,7.8881]
[1719203921473,15.4172,126.8,126.75,7.8893]
[1719203921474,23.3038,126.8,126.75,7.8893]
[1719203921644,23.3038,126.8,126.72,59.1838]
[1719203921645,15.4172,126.8,126.72,19.7281]
[1719203921958,15.4172,126.8,126.7,19.7314]
[1719203922165,15.4172,126.8,126.73,19.7268]
[1719203922337,15.4172,126.8,126.77,7.8882]
[1719203922664,15.4172,126.8,126.76,7.8885]
[1719203922835,15.4172,126.8,126.76,7.8886]
[1719203924759,23.3038,126.8,126.76,7.8886]
[1719203924965,23.3038,126.8,126.69,41.29141602]
[1719203924966,15.4172,126.8,126.69,41.29141602]
[1719203925150,15.4172,126.8,126.72,139.4564]
[1719203925342,15.4172,126.8,126.77,7.888]
[1719203925944,15.4172,126.8,126.78,7.8874]
[1719203926638,15.4172,126.8,126.77,7.888]
[1719203927271,15.4172,126.8,126.78,7.8874]
[1719203927457,15.4172,126.8,126.79,7.887]
[1719203927662,15.4172,126.8,126.78,7.8874]
[1719203928668,15.4172,126.8,126.76,19.7209]
[1719203928669,15.4172,126.8,126.77,7.888]
[1719203931562,15.4172,126.8,126.78,7.8875]
[1719203931770,7.887,126.79,126.75,7.8893]
[1719203931961,15.4172,126.8,126.76,7.8886]
[1719203932157,23.3036,126.8,126.76,7.8886]
[1719203932669,15.4172,126.8,126.76,7.8886]
[1719203932856,15.4172,126.8,126.74,200.0]
[1719203933059,15.4172,126.8,126.79,7.887]
[1719203936379,44.76169113,126.87,126.75,39.7865]
[1719203936380,16.0664,126.84,126.8,7.8859]
[1719203936557,23.9503,126.84,126.8,7.8862]
[1719203936957,23.9503,126.84,126.79,7.8867]
[1719203937158,23.9503,126.84,126.8,7.8863]
[1719203938067,16.0664,126.84,126.8,7.8863]
[1719203938273,23.9506,126.84,126.8,7.8863]
[1719203938774,23.9506,126.84,126.79,7.8867]
[1719203939563,16.0664,126.84,126.77,19.7195]
[1719203939765,23.9503,126.84,126.8,7.8861]
[1719203940179,23.9503,126.84,126.79,7.8869]
[1719203942785,7.8846,126.83,126.78,7.8873]
[1719203942961,7.8852,126.82,126.78,7.8873]
[1719203943163,7.8852,126.82,126.77,7.888]
[1719203943470,16.0664,126.84,126.78,7.8876]
[1719203943471,7.8848,126.83,126.78,7.8876]
[1719203943780,7.8848,126.83,126.79,7.8869]
[1719203946179,16.0664,126.84,126.75,39.4471]
[1719203946379,16.0664,126.84,126.8,7.8861]
[1719203947171,16.0664,126.84,126.78,19.7191]
[1719203947384,16.0664,126.84,126.79,0.34]
[1719203947689,16.0664,126.84,126.81,7.8853]
[1719203947904,16.0664,126.84,126.83,7.8845]
[1719203948195,1.1101,126.86,126.82,0.34]
[1719203948577,1.1101,126.86,126.81,0.34]
[1719203949292,1.1101,126.86,126.84,7.8837]
[1719203949803,1.1101,126.86,126.83,7.8842]
[1719203949991,7.8817,126.88,126.81,0.34]
[1719203949992,15.7748,126.9,126.86,7.8825]
[1719203950185,23.6556,126.9,126.85,7.8829]
[1719203950497,23.6556,126.9,126.86,7.8826]
[1719203951203,23.6556,126.9,126.85,7.883]
[1719203953046,7.8808,126.89,126.85,7.883]
[1719203953297,7.8827,126.86,126.81,7.8855]
[1719203953475,34.6548,126.9,126.78,106.3018]
[1719203953476,7.8826,126.87,126.82,7.8847]
[1719203954096,7.8822,126.87,126.82,7.8848]
[1719203954587,7.8827,126.86,126.82,7.8848]
[1719203955001,7.8827,126.86,126.81,7.8856]
[1719203955298,7.8835,126.85,126.8,7.8861]
[1719203955499,7.884,126.84,126.8,7.8861]
[1719203955870,7.8836,126.85,126.81,7.8857]
[1719203956477,7.8836,126.85,126.77,19.7206]
[1719203956680,7.8836,126.85,126.8,7.8861]
[1719203958598,7.8842,126.84,126.79,7.8867]
[1719203958805,23.7522,126.84,126.78,0.17]
[1719203958991,23.7522,126.84,126.78,1.73714141]
[1719203959601,23.2522,126.84,126.8,7.8863]
[1719203960475,15.868,126.84,126.81,7.8857]
[1719203960794,15.868,126.84,126.8,7.8862]
[1719203960994,7.886,126.81,126.73,63.8421]
[1719203961399,7.886,126.81,126.77,7.8879]
[1719203962908,1.1101,126.82,126.75,7.8893]
[1719203964004,7.8867,126.8,126.75,7.8893]
[1719203964893,7.8867,126.8,126.76,7.8888]
[1719203966208,7.8874,126.79,126.74,7.8898]
[1719203966506,1.1101,126.82,126.73,0.34]
[1719203967178,7.8867,126.8,126.76,7.8887]
[1719203967379,7.886,126.81,126.76,7.8887]
[1719203967805,1.1101,126.82,126.75,7.8893]
[1719203967806,7.8865,126.8,126.75,7.8893]
[1719203968101,7.8875,126.79,126.74,7.8899]
[1719203968486,23.0565,126.78,126.71,26.0062]
[1719203968681,23.0565,126.78,126.73,7.8904]
[1719203968882,23.0565,126.78,126.71,26.0062]
[1719203969186,15.1688,126.78,126.69,21.55871602]
[1719203969506,8.9986,126.77,126.73,7.8907]
[1719203971104,7.889,126.76,126.69,19.7328]
[1719203971306,7.8901,126.75,126.7,7.8922]
[1719203971508,7.8903,126.74,126.69,7.393]
[1719203971812,15.0232,126.73,126.68,7.8937]
[1719203972020,22.9143,126.73,126.68,7.8937]
[1719203972401,15.0232,126.73,126.64,22.4652]
[1719203972996,7.892,126.71,126.66,7.8949]
[1719203973326,35.8605,126.73,126.65,7.8955]
[1719203973614,7.8929,126.7,126.66,8.56319376]
[1719203973817,7.8929,126.7,126.66,0.66809376]
[1719203974020,7.8929,126.7,126.65,7.8955]
[1719203974202,7.8941,126.68,126.61,42.2105]
[1719203974416,7.8928,126.7,126.65,7.8956]
[1719203974723,7.892,126.71,126.66,7.895]
[1719203975528,7.892,126.71,126.67,7.8943]
[1719203975696,7.8916,126.72,126.68,7.8938]
[1719203975905,24.0242,126.73,126.68,7.8938]
[1719203976126,15.0232,126.73,126.71,7.8918]
[1719203976324,15.0232,126.73,126.64,19.7397]
[1719203976622,7.8917,126.72,126.67,7.894]
[1719203976824,15.0232,126.73,126.68,45.0]
[1719203977006,7.8917,126.72,126.68,45.0]
[1719203977405,7.8917,126.72,126.68,52.8937]
[1719203978034,7.892,126.71,126.68,45.0]
[1719203978493,7.8914,126.72,126.67,52.8944]
[1719203981908,22.9142,126.73,126.68,7.8938]
[1719203982122,22.9142,126.73,126.69,45.0]
[1719203982830,15.0232,126.73,126.69,52.8931]
[1719203983138,1.1101,126.76,126.69,45.0]
[1719203983431,1.1101,126.76,126.68,53.0636]
[1719203983432,7.8908,126.73,126.68,53.0636]
[1719203983606,7.8914,126.72,126.68,45.0]
[1719203983802,7.8914,126.72,126.68,52.8938]
[1719203984003,7.8914,126.72,126.68,45.0]
[1719203984201,7.8909,126.73,126.68,52.8937]
[1719203984831,7.8916,126.72,126.68,45.0]
[1719203985231,7.892,126.71,126.68,45.0]
[1719203985536,7.8916,126.72,126.68,45.0]
[1719203985825,1.1101,126.76,126.68,45.0]
[1719203986003,7.8907,126.74,126.69,7.8931]
[1719203986209,7.8907,126.74,126.7,45.0]
[1719203986531,7.8909,126.73,126.7,45.0]
[1719203986956,7.8904,126.74,126.7,45.0]
[1719203987133,7.8908,126.73,126.7,45.0]
[1719203987642,7.8908,126.73,126.68,7.8936]
[1719203987643,7.8908,126.73,126.69,45.0]
[1719203988025,7.8914,126.72,126.69,45.0]
[1719203988240,7.8914,126.72,126.68,45.0]
[1719203988648,7.8914,126.72,126.68,52.8939]
[1719203989248,7.8914,126.72,126.68,45.0]
[1719203989458,7.892,126.71,126.68,45.0]
[1719203989763,7.892,126.71,126.67,45.0]
[1719203990223,23.3619,126.72,126.67,45.0]
[1719203991343,23.3619,126.72,126.68,7.8938]
[1719203991549,23.3619,126.72,126.69,45.0]
[1719203992660,15.4703,126.72,126.69,52.8932]
[1719203993753,23.3618,126.72,126.69,45.0]
[1719203993933,15.4703,126.72,126.69,45.0]
[1719203994653,6.29,126.71,126.69,52.8931]
[1719203996342,6.29,126.71,126.69,45.0]
[1719203997542,6.29,126.71,126.69,52.8928]
[1719203998664,15.4703,126.72,126.69,45.0]
[1719203999169,6.29,126.71,126.68,52.8936]
[1719204000362,6.29,126.71,126.64,6.6138]
[1719204000562,6.29,126.69,126.64,6.6138]
[1719204000764,6.29,126.69,126.67,7.8944]
[1719204001141,7.8923,126.71,126.67,7.8944]
[1719204001539,7.8923,126.71,126.66,7.8949]
[1719204001754,7.8923,126.71,126.67,45.0]
[1719204002345,7.8926,126.7,126.67,45.0]
[1719204002563,40.6303,126.72,126.67,52.8945]
[1719204002564,7.8922,126.71,126.67,52.8945]
[1719204002964,21.7603,126.72,126.69,7.8929]
[1719204003164,7.8905,126.74,126.7,52.8926]
[1719204003356,6.29,126.72,126.71,45.0]
[1719204003748,6.29,126.72,126.7,45.0]
[1719204004247,6.29,126.73,126.71,7.8917]
[1719204004446,6.29,126.73,126.72,45.0]
[1719204004760,6.29,126.73,126.7,52.8922]
[1719204006975,14.1816,126.72,126.7,45.0]
[1719204007176,14.1816,126.72,126.69,45.0]
[1719204007350,6.29,126.71,126.69,45.0]
[1719204007979,14.1816,126.72,126.69,45.0]
[1719204008146,7.8903,126.74,126.69,52.8931]
[1719204008355,24.2052,126.75,126.7,7.8926]
[1719204008571,6.29,126.74,126.71,45.0]
[1719204009075,24.2052,126.75,126.71,45.0]
[1719204009275,6.29,126.72,126.64,26.354]
[1719204009479,14.1826,126.7,126.65,6.29]
[1719204009681,6.29,126.7,126.66,7.8947]
[1719204009867,6.29,126.7,126.67,7.8944]
[1719204010182,6.29,126.7,126.67,7.8941]
[1719204010481,6.29,126.7,126.68,7.8938]
[1719204010665,7.8916,126.72,126.68,7.8938]
[1719204010874,6.29,126.71,126.69,45.0]
[1719204011180,6.29,126.74,126.71,7.8918]
[1719204011393,7.8901,126.74,126.72,45.0]
[1719204011596,14.1801,126.74,126.69,51.29]
[1719204012286,14.1801,126.74,126.7,7.8925]
[1719204012488,7.8901,126.74,126.71,45.0]
[1719204012790,14.1801,126.74,126.71,45.0]
[1719204013108,14.1801,126.74,126.7,45.0]
[1719204013866,14.1797,126.75,126.7,52.8924]
[1719204014188,14.1792,126.76,126.71,8.0619]
[1719204014381,14.1792,126.76,126.72,45.0]
[1719204015184,6.29,126.75,126.72,45.0]
[1719204015392,14.1795,126.75,126.72,45.0]
[1719204015617,22.0229,126.78,126.72,52.8913]
[1719204015768,16.478,126.81,126.72,45.0]
[1719204015969,16.478,126.81,126.75,7.8891]
[1719204016195,16.478,126.81,126.76,45.0]
[1719204016196,6.29,126.79,126.76,45.0]
[1719204016672,14.1775,126.79,126.76,45.0]
[1719204016891,14.1775,126.79,126.75,45.0]
[1719204018489,16.478,126.81,126.75,45.0]
[1719204018490,7.8889,126.76,126.75,45.0]
[1719204018800,6.29,126.76,126.75,45.0]
[1719204019015,14.1789,126.76,126.72,7.8913]
[1719204019193,14.1789,126.76,126.7,6.29]
[1719204019397,7.8895,126.75,126.71,7.8914]
[1719204019605,14.1792,126.76,126.72,7.8913]
[1719204019809,6.29,126.76,126.72,7.8913]
[1719204020307,16.478,126.81,126.75,7.8895]
[1719204020487,6.29,126.78,126.75,7.8895]
[1719204020688,6.29,126.78,126.76,45.0]
[1719204020910,6.29,126.79,126.76,45.0]
[1719204022690,7.8855,126.82,126.76,45.0]
[1719204023015,7.8859,126.81,126.77,7.8881]
[1719204023318,15.3604,126.84,126.78,45.0]
[1719204025302,7.8858,126.81,126.78,45.0]
[1719204025598,7.8854,126.82,126.78,52.8874]
[1719204025792,7.8858,126.81,126.78,45.0]
[1719204026224,7.8854,126.82,126.78,45.0]
[1719204027124,15.3604,126.84,126.78,45.0]
[1719204027414,7.8837,126.85,126.8,7.8858]
[1719204027584,7.8837,126.85,126.81,45.0]
[1719204027789,7.884,126.84,126.81,45.0]
[1719204028491,7.884,126.84,126.8,45.0]
[1719204029306,7.8834,126.85,126.8,45.0]
[1719204030025,7.8834,126.85,126.8,52.8861]
[1719204030198,7.8834,126.85,126.8,59.1098]
[1719204030527,7.8839,126.84,126.8,59.1098]
[1719204031232,7.8836,126.85,126.8,59.1098]
[1719204032598,7.8839,126.84,126.8,59.1098]
[1719204033199,7.8836,126.85,126.8,59.1098]
[1719204034002,7.8839,126.84,126.8,59.1098]
[1719204034600,7.8835,126.85,126.8,59.1098]
[1719204034997,7.8826,126.87,126.82,7.8851]
[1719204035309,7.8826,126.87,126.8,51.2237]
[1719204035310,7.8826,126.87,126.83,45.0]
[1719204035517,7.3826,126.87,126.83,45.0]
[1719204037621,7.8828,126.86,126.83,45.0]
[1719204038700,7.8828,126.86,126.81,7.8855]
[1719204038701,7.8828,126.86,126.82,45.0]
[1719204039197,7.8828,126.86,126.82,52.8851]
[1719204041804,19.7038,126.88,126.8,14.1097]
[1719204042005,7.8836,126.85,126.8,14.1097]
[1719204043220,7.8836,126.85,126.81,45.0]
[1719204043419,7.8836,126.85,126.81,52.8857]
[1719204045037,14.1636,126.85,126.81,52.8857]
[1719204045217,7.8836,126.85,126.81,45.0]
[1719204045833,0.34,126.89,126.81,45.0]
[1719204046010,6.28,126.85,126.81,52.8855]
[1719204046508,6.28,126.84,126.81,45.0]
[1719204046734,14.1651,126.82,126.81,45.0]
[1719204046959,6.28,126.82,126.77,6.28]
[1719204047254,6.28,126.81,126.77,7.8877]
[1719204047620,6.28,126.81,126.78,7.8875]
[1719204047821,6.28,126.82,126.78,7.8875]
[1719204048256,6.28,126.82,126.79,7.8868]
[1719204048640,15.4278,126.85,126.78,6.28]
[1719204048946,14.1646,126.83,126.79,52.8867]
[1719204049258,6.28,126.82,126.79,52.8867]
[1719204050048,14.1654,126.82,126.79,45.0]
[1719204051126,7.8847,126.83,126.79,45.0]
[1719204051651,14.1652,126.82,126.79,45.0]
[1719204052030,7.8859,126.81,126.77,7.8882]
[1719204052248,6.28,126.8,126.77,7.8882]
[1719204052427,14.1659,126.81,126.77,7.8882]
[1719204052959,15.4278,126.85,126.78,7.8873]
[1719204053142,6.28,126.82,126.78,7.8873]
[1719204053332,6.28,126.82,126.79,45.0]
[1719204053825,15.4278,126.85,126.79,45.0]
[1719204054022,6.28,126.82,126.79,45.0]
[1719204055055,14.1653,126.82,126.79,45.0]
[1719204055255,7.8853,126.82,126.78,52.8874]
[1719204055557,14.1653,126.82,126.78,52.8874]
[1719204055730,7.8853,126.82,126.78,52.8874]
[1719204056133,14.1653,126.82,126.78,52.8874]
[1719204056325,15.4278,126.85,126.79,7.887]
[1719204056522,7.8846,126.83,126.8,45.0]
[1719204056754,14.1646,126.83,126.8,45.0]
[1719204057055,7.8841,126.84,126.8,45.0]
[1719204057241,14.1646,126.83,126.79,52.8867]
[1719204058171,6.28,126.83,126.79,52.8867]
[1719204058851,7.8842,126.84,126.8,7.8862]
[1719204059052,14.1642,126.84,126.81,45.0]
[1719204060057,6.28,126.83,126.81,45.0]
[1719204060362,6.28,126.82,126.81,45.0]
[1719204060835,14.1651,126.82,126.81,45.0]
[1719204061151,7.8851,126.82,126.81,45.0]
[1719204061448,6.28,126.82,126.76,22.8699]
[1719204061655,6.28,126.82,126.76,37.0385]
[1719204061955,7.8861,126.81,126.77,7.8882]
[1719204062353,14.1654,126.82,126.77,7.8882]
[1719204062559,7.8848,126.83,126.78,7.8875]
[1719204062730,35.1364,126.85,126.79,52.8866]
[1719204062932,7.8843,126.84,126.79,45.0]
[1719204063161,6.28,126.83,126.79,7.8867]
[1719204063357,7.8846,126.83,126.8,45.0]
[1719204063538,14.1646,126.83,126.8,45.0]
[1719204063735,7.8846,126.83,126.8,45.0]
[1719204063962,14.1646,126.83,126.8,45.0]
[1719204064132,7.8842,126.84,126.8,45.0]
[1719204064328,6.28,126.83,126.8,45.0]
[1719204064661,14.1635,126.85,126.8,52.8861]
[1719204064873,7.8835,126.85,126.8,52.8861]
[1719204065158,6.28,126.84,126.8,45.0]
[1719204065357,14.1648,126.83,126.8,45.0]
[1719204065547,14.1648,126.83,126.79,52.887]
[1719204065749,6.28,126.83,126.79,7.887]
[1719204065938,6.28,126.83,126.76,22.8699]
[1719204065939,6.28,126.82,126.76,22.8699]
[1719204066142,6.28,126.82,126.78,7.8873]
[1719204066349,14.1648,126.83,126.78,7.8873]
[1719204066760,14.1648,126.83,126.79,7.887]
[1719204067053,14.1648,126.83,126.78,7.8873]
[1719204067252,14.1648,126.83,126.79,45.0]
[1719204067767,6.28,126.83,126.79,52.8866]
[1719204068064,6.28,126.83,126.8,7.8864]
[1719204068266,6.28,126.83,126.81,45.0]
[1719204068649,14.1642,126.84,126.81,45.0]
[1719204068846,6.28,126.83,126.8,45.0]
[1719204069250,7.8846,126.83,126.8,45.0]
[1719204069562,7.884,126.84,126.8,45.0]
[1719204069746,6.28,126.83,126.8,45.0]
[1719204070565,6.28,126.82,126.8,45.0]
[1719204070960,6.28,126.82,126.79,45.0]
[1719204071459,6.28,126.82,126.79,52.887]
[1719204071967,14.1647,126.83,126.79,52.887]
[1719204072151,6.28,126.83,126.8,7.8864]
[1719204072358,14.164,126.84,126.81,45.0]
[1719204073468,14.1651,126.82,126.81,45.0]
[1719204074164,6.28,126.82,126.81,45.0]
[1719204074471,6.28,126.85,126.81,45.0]
[1719204074778,6.28,126.85,126.81,7.8857]
[1719204074942,6.28,126.85,126.82,45.0]
[1719204075147,6.28,126.85,126.82,52.8849]
[1719204075364,6.28,126.86,126.82,52.8849]
[1719204075564,15.1262,126.88,126.82,52.8849]
[1719204075872,6.28,126.88,126.84,7.8836]
[1719204076175,14.1615,126.88,126.85,45.0]
[1719204076867,7.8815,126.88,126.85,45.0]
[1719204077082,7.8821,126.87,126.84,45.0]
[1719204077369,7.8817,126.88,126.85,1.57905448]
[1719204080238,19.7027,126.89,126.84,45.0]
[1719204080576,7.883,126.86,126.84,45.0]
[1719204080872,14.1637,126.85,126.81,23.0747]
[1719204081040,6.28,126.84,126.81,23.0747]
[1719204081243,14.1639,126.84,126.81,23.0747]
[1719204081458,6.28,126.84,126.81,23.0747]
[1719204082753,6.28,126.84,126.82,45.0]
[1719204083263,6.28,126.85,126.82,45.0]
[1719204083457,14.1634,126.85,126.82,45.0]
[1719204083664,6.28,126.85,126.82,45.0]
[1719204084968,7.883,126.86,126.82,45.0]
[1719204085138,6.28,126.85,126.82,45.0]
[1719204085438,14.1637,126.85,126.82,45.0]
[1719204085941,7.8837,126.85,126.82,45.0]
[1719204086143,14.1637,126.85,126.82,45.0]
[1719204086373,6.28,126.83,126.78,22.3667]
[1719204086580,6.28,126.82,126.78,30.254]
[1719204087970,6.28,126.82,126.79,7.887]
[1719204088210,6.28,126.82,126.8,45.0]
[1719204088393,6.28,126.81,126.75,282.2662]
[1719204088681,6.28,126.78,126.75,22.3662]
[1719204089178,6.28,126.78,126.75,30.2556]
[1719204090376,6.28,126.78,126.75,22.3662]
[1719204090667,6.28,126.78,126.75,6.3813]
[1719204091171,6.28,126.78,126.75,14.2707]
[1719204091550,6.28,126.78,126.76,7.8888]
[1719204091750,6.28,126.78,126.77,45.0]
[1719204092559,6.28,126.78,126.77,52.8883]
[1719204092886,6.28,126.79,126.77,52.8883]
[1719204093569,19.7087,126.85,126.79,7.8869]
[1719204093755,6.28,126.82,126.8,45.0]
[1719204093955,7.8835,126.85,126.8,52.8861]
[1719204094173,6.28,126.83,126.8,52.8861]
[1719204094987,6.28,126.83,126.8,45.0]
[1719204096087,7.8842,126.84,126.8,45.0]
[1719204096264,6.28,126.83,126.8,45.0]
[1719204097188,7.8842,126.84,126.8,45.0]
[1719204097360,6.28,126.84,126.8,52.8862]
[1719204097556,14.164,126.84,126.8,52.8862]
[1719204097760,14.164,126.84,126.8,45.0]
[1719204097961,6.28,126.82,126.8,45.0]
[1719204098188,6.28,126.82,126.79,45.0]
[1719204099069,7.8841,126.84,126.8,7.8863]
[1719204099391,6.28,126.83,126.81,45.0]
[1719204099685,6.28,126.83,126.8,45.0]
[1719204100774,6.28,126.83,126.8,52.8862]
[1719204100969,7.8835,126.85,126.8,45.0]
[1719204101168,7.8835,126.85,126.79,45.0]
[1719204101169,6.28,126.83,126.79,45.0]
[1719204101969,6.28,126.83,126.8,7.8863]
[1719204102171,6.28,126.83,126.81,45.0]
[1719204102686,7.8835,126.85,126.81,45.0]
[1719204102882,6.28,126.83,126.81,45.0]
[1719204103895,6.28,126.83,126.81,52.8857]
[1719204104088,6.28,126.84,126.81,52.8857]
[1719204109092,14.1639,126.84,126.81,45.0]
[1719204109393,6.28,126.83,126.81,45.0]
[1719204109601,6.28,126.83,126.8,45.0]
[1719204110595,6.28,126.83,126.8,52.8863]
[1719204112074,7.8835,126.85,126.81,7.8857]
[1719204112281,6.28,126.84,126.82,45.0]
[1719204112490,7.8835,126.85,126.82,45.0]
[1719204112790,6.28,126.85,126.82,45.0]
[1719204113088,6.28,126.86,126.83,7.8844]
[1719204113268,6.28,126.86,126.84,45.0]
[1719204113596,6.28,126.87,126.84,45.0]
[1719204114477,14.1621,126.87,126.84,45.0]
[1719204114687,7.8821,126.87,126.84,45.0]
[1719204114894,14.1621,126.87,126.84,45.0]
[1719204117708,6.28,126.86,126.84,45.0]
[1719204117876,6.28,126.86,126.83,45.0]
[1719204118401,15.5878,126.89,126.83,45.0]
[1719204118605,14.162,126.87,126.83,52.8841]
[1719204118782,6.28,126.86,126.83,52.8841]
[1719204119185,6.28,126.86,126.83,45.0]
[1719204120393,7.8818,126.88,126.84,7.8835]
[1719204120692,19.6976,126.92,126.85,52.8829]
[1719204120899,14.1611,126.89,126.85,45.0]
[1719204121404,6.28,126.88,126.85,45.0]
[1719204121705,14.1616,126.88,126.85,45.0]
[1719204123418,6.28,126.88,126.85,45.0]
[1719204124306,16.8718704,126.93,126.85,45.0]
[1719204124307,6.28,126.86,126.85,45.0]
[1719204124681,6.28,126.86,126.84,45.0]
[1719204125108,6.28,126.86,126.83,52.8841]
[1719204125313,6.28,126.86,126.83,45.0]
[1719204125515,7.8855,126.82,126.78,16.3408]
[1719204125808,6.28,126.8,126.78,16.3408]
[1719204126013,6.28,126.8,126.78,24.2284]